Cogmind - Beta 15 @@@ ROGUE MODE // 2025.06.12 @ 10:13:07 Player: Jammed Result: Destroyed by Y-72 Warden with Quantum Rifle Performance ------------- Evolutions (6) 3000 Regions Visited (24) 4800 Robots Destroyed (486) 2430 Value Destroyed (21216) 21216 Prototype IDs (33) 660 Alien Tech Used (0) 0 Bonus (9246) 9246 TOTAL SCORE: 41352 Bonus ------- High Alert Combat Kills 3177 Follower Combat Kills 1620 Entered Garrisons 200 Network Hubs Disabled 200 Met Data Miner 300 Acquired ECA 300 Met Warlord at Base 500 MAIN.C Attacked Warlord 500 Warlord Defense Kills 2242 Built Enhanced Grunts 300 A7 Reached Mainframe 300 Met R17 at Cetus 500 Friendly Fire -893 Cogmind --------- Core Integrity 0/1150 Matter 193/300 Energy 90/100 System Corruption 40% Temperature Cool (9) Movement Core (1350) Ox26 Location -4/Upper Caves Parts ------- > --- POWER (2) -------- (None) > --- PROPULSION (4) --- (None) > --- UTILITY (8) ------ Huge Storage Unit Enhanced Optical Array Advanced Signal Interpreter Improved Salvage Targeting Computer Experimental Core Analyzer > --- WEAPON (5) ------- (None) > --- INVENTORY (25) --- Advanced Power Amplifier Advanced Coolant Injector Advanced Coolant Injector Experimental Matter Compressor (500) Encrypted Comm Array Quantum Capacitor Improved Transmission Jammer Improved Utility Shielding Improved Medium Armor Plating Medium Reactive Plating Improved Powered Armor Experimental Thermal Shield Improved Shield Generator System Shield Long-range Tractor Beam Improved Remote Datajack Improved Remote Datajack Peak State ------------ > --- POWER ------------ Vortex Chain Reactor > --- PROPULSION ------- Armored Medium Treads Armored Medium Treads Armored Medium Treads Armored Medium Treads > --- UTILITY ---------- Huge Storage Unit Enhanced Optical Array Advanced Sensor Array Experimental Core Analyzer Quantum Capacitor Experimental Thermal Shield Hardlight Generator > --- WEAPON ----------- Heavy Phase Cannon KE Penetrator Advanced KE Penetrator Helical Railgun Helical Railgun > --- INVENTORY -------- Fusion Reactor Armored Medium Treads Armored Medium Treads Experimental Heat Sink Advanced Cooling System Advanced Coolant Injector Experimental Matter Compressor Encrypted Comm Array Improved Weapon Cycler Hardened Medium Armor Plating Medium Reactive Plating Advanced Thermal Shield Advanced Hardlight Generator Improved Force Field Improved Force Field Improved Hacking Suite System Shield Long-range Tractor Beam Long-range Proton Cannon Gauss Rifle Gauss Rifle Coil Gun Heavy Machine Gun KE Penetrator Improved Remote Datajack [Rating: 143] Favorites ----------- Power Fusion Reactor Engine Reinforced Ion Engine Power Core Light Nuclear Core Reactor Fusion Reactor Propulsion Armored Medium Treads Treads Armored Medium Treads Leg Aluminum Leg Wheel Compact Wheel Utility Huge Storage Unit Device Hardlight Generator Storage Huge Storage Unit Processor Enhanced Optical Array Hackware Hacking Suite Protection Hardened Heavy Armor Plating Weapon KE Penetrator Energy Gun Small Laser Energy Cannon Heavy Plasma Cannon Ballistic Gun KE Penetrator Launcher Improved Grenade Launcher Special Weapon Mining Laser Impact Weapon Maul Special Melee Weapon Advanced Datajack Build | -11 -10 -9 -9 -8 -7 -7 -7 -7 -6 -6 -6 -6 -6 -6 -5 -5 -5 -5 -5 -5 -4 -4 -4 -4 ------- Run | Yrd Mat Mat Min Mat Fac Low Low Dat Pro Fac Ext Cet Arc Hub Fac Gar Fac Upp Upp War Pro Fac Upp Upp Slots Evolved 12 | . . 2 . 2 2 . . . . 2 . . . . 2 . . . . . . 2 . . Power 1 | . . . . . . . . . . . . . . . . . . . . . . 1 . . Propulsion 2 | . . . . . 1 . . . . . . . . . 1 . . . . . . . . . Utility 6 | . . 1 . 1 1 . . . . 1 . . . . 1 . . . . . . 1 . . Weapon 3 | . . 1 . 1 . . . . . 1 . . . . . . . . . . . . . . Parts Attached 278 | 1 17 21 6 26 10 2 9 . 3 21 10 4 4 11 13 5 16 3 2 11 2 53 23 5 Power 32 | . 2 2 1 2 2 . 2 . 1 2 2 1 . . 1 1 3 1 . 1 . 4 3 1 Engine 5 | . 2 . 1 . . . 1 . . . . . . . . . . . . . . . 1 . Core 17 | . . 2 . 2 2 . 1 . 1 2 2 . . . 1 1 . . . . . . 2 1 Reactor 10 | . . . . . . . . . . . . 1 . . . . 3 1 . 1 . 4 . . Propulsion 65 | . 6 9 4 6 2 . 3 . 1 5 3 . 1 4 1 2 4 1 . 1 . 6 5 1 Treads 52 | . 1 4 2 6 2 . 3 . 1 5 3 . 1 4 . 2 4 1 . 1 . 6 5 1 Leg . | . . . . . . . . . . . . . . . . . . . . . . . . . Wheel 13 | . 5 5 2 . . . . . . . . . . . 1 . . . . . . . . . Hover . | . . . . . . . . . . . . . . . . . . . . . . . . . Flight . | . . . . . . . . . . . . . . . . . . . . . . . . . Utility 97 | 1 4 4 1 8 3 1 3 . 1 8 3 . 1 5 7 1 3 1 2 5 1 25 8 1 Device 55 | 1 . 1 . 3 1 1 1 . 1 6 2 . 1 4 4 . 3 1 2 2 . 16 5 . Storage 2 | . 1 . . . . . . . . . . . . . . . . . . 1 . . . . Processor 10 | . . 1 . . 1 . 1 . . . . . . . 1 . . . . 2 1 2 1 . Hackware 5 | . . . . 2 . . . . . . . . . . 1 1 . . . . . 1 . . Protection 25 | . 3 2 1 3 1 . 1 . . 2 1 . . 1 1 . . . . . . 6 2 1 Artifact . | . . . . . . . . . . . . . . . . . . . . . . . . . Weapon 84 | . 5 6 . 10 3 1 1 . . 6 2 3 2 2 4 1 6 . . 4 1 18 7 2 Energy Gun 4 | . 1 . . . . . . . . . . 1 . . . . . . . . . . 2 . Energy Cannon 5 | . . 1 . 1 . . . . . 1 . . . . . . 2 . . . . . . . Ballistic Gun 67 | . 3 4 . 9 3 . 1 . . 4 2 2 1 2 4 1 4 . . 4 . 18 4 1 Ballistic Cannon . | . . . . . . . . . . . . . . . . . . . . . . . . . Launcher 1 | . . 1 . . . . . . . . . . . . . . . . . . . . . . Special Weapon 5 | . 1 . . . . . . . . 1 . . . . . . . . . . 1 . 1 1 Impact Weapon 1 | . . . . . . 1 . . . . . . . . . . . . . . . . . . Slashing Weapon . | . . . . . . . . . . . . . . . . . . . . . . . . . Piercing Weapon . | . . . . . . . . . . . . . . . . . . . . . . . . . Special Melee Weapon 1 | . . . . . . . . . . . . . 1 . . . . . . . . . . . Unidentified Prototypes 18 | . . 1 . . . . . . . 2 . 2 . 2 . . 1 . . 5 . 4 1 . Corrupted Parts 6 | . . . . . . . . . . . . . . 3 . . . . . 1 . 2 . . System Corruption 36 | . . . . . . . . . . . . . . 13 . . . . . 3 . 20 . . Parts Lost 114 | . 11 1 2 3 1 . 4 . 1 2 2 1 . 7 3 1 4 . 1 . 1 41 15 13 Power 12 | . 2 . . . . . 1 . . . . . . . 1 . . . . . . 4 2 2 Propulsion 26 | . 4 1 . . . . 1 . 1 1 . . . 1 . 1 1 . . . . 5 7 3 Utility 27 | . 2 . 1 2 1 . 1 . . . . . . 2 1 . 1 . 1 . . 10 2 3 Weapon 49 | . 3 . 1 1 . . 1 . . 1 2 1 . 4 1 . 2 . . . 1 22 4 5 Highest Loss Streak 12 | . 5 1 1 1 1 . 2 . 1 1 1 1 . 4 1 1 2 . 1 . 1 10 7 12 To Critical Strikes 5 | . . . . . . . . . . . 1 1 . . . . . . . . 1 1 1 . Average Backups 21 | 6 8 23 24 23 23 24 23 22 22 23 23 23 23 22 21 23 23 23 23 22 22 21 16 18 Power 1 | 1 . 1 1 1 1 1 . . . 2 1 1 2 1 1 1 2 1 1 1 2 1 . . Propulsion 4 | 4 2 7 8 6 5 6 5 5 5 4 6 5 4 4 5 5 3 2 2 2 2 3 . . Utility 9 | . 2 6 7 8 10 10 9 10 9 9 10 11 11 11 9 9 10 11 11 11 11 9 11 14 Weapon 6 | 1 2 7 8 7 6 6 6 7 7 7 6 5 5 5 4 7 7 8 8 7 6 4 1 . Tool/Special . | . . . . . . . . . . . . . . . . . . . . . . . . . Unused Backups 53 | . 2 11 1 6 5 1 . . 1 2 . 3 1 1 2 1 4 1 . 1 . 4 . 6 Power 6 | . . . . 1 1 . . . . 1 . 1 . 1 . . 1 . . . . . . . Propulsion 13 | . . 4 1 2 . . . . . . . 1 . . . . 2 . . . . 3 . . Utility 21 | . 2 3 . 1 3 . . . 1 1 . . 1 . 1 . . 1 . 1 . 1 . 5 Weapon 12 | . . 4 . 2 1 1 . . . . . 1 . . 1 1 1 . . . . . . . Tool/Special 1 | . . . . . . . . . . . . . . . . . . . . . . . . 1 Average Slot Usage (%) 92 | . 93 99 99 99 91 92 91 66 92 92 92 92 92 92 91 93 93 99 99 99 99 86 58 72 Engine 1 | . 8 . 10 . . . 1 . . . . . . . . . . . . . . . . 4 Core 3 | . . 10 . 8 7 7 5 7 7 6 5 5 . . 1 5 . . . . . . 2 . Reactor 1 | . . . . . . . . . . . . . 6 6 3 . 4 5 5 4 5 6 . . Treads 18 | . 8 11 10 14 22 23 23 23 23 19 19 20 20 19 17 16 17 22 23 23 23 20 11 8 Wheel 2 | . 18 10 11 3 . . . . . . . . . . . . . . . . . . . . Device 12 | . 1 10 11 17 12 7 6 7 7 12 12 13 12 14 16 20 17 22 16 21 19 10 5 4 Storage 6 | . 14 11 11 9 7 7 7 7 7 6 6 6 6 6 5 5 5 5 5 5 5 5 5 5 Processor 6 | . . . . . 1 7 7 7 7 6 6 6 6 4 4 5 5 5 5 8 11 11 18 21 Protection 6 | . 12 10 10 8 6 7 7 7 7 6 6 6 6 6 8 6 4 . 5 1 3 5 2 8 Energy Gun 1 | . 15 . . . . . . . . . . 2 . . . . . . . . . . 4 4 Ballistic Gun 26 | . 12 30 33 33 28 29 29 5 30 30 29 29 32 32 24 29 28 29 29 28 28 22 7 13 Peak Build Rating 143 | 7 8 19 19 29 43 44 47 46 47 68 67 82 83 91 106 106 110 103 96 122 123 143 85 80 Average Rating 65 | 6 6 16 18 26 40 42 43 35 45 55 60 74 82 83 101 103 104 99 95 104 119 121 65 73 On Entrance 62 | 6 7 8 19 19 29 43 43 46 46 44 67 65 82 82 91 101 101 98 100 96 122 123 67 67 Naked Turns . | . . . . . . . . . . . . . . . . . . . . . . . . . Heaviest Build 187 | 12 92 103 105 111 127 120 124 119 122 137 147 148 149 152 165 155 160 126 144 147 146 187 111 121 Greatest Support 137 | 20 32 40 24 43 66 66 66 62 62 84 84 84 84 100 120 123 137 114 111 111 108 108 108 55 Greatest Overweight (x) 9 | . 5 8 8 9 1 1 2 1 2 2 2 1 1 2 1 1 1 1 1 1 1 1 3 4 Average Overweight (x) 2 | . 4 6 7 4 1 1 1 1 1 1 1 1 1 1 1 1 . 1 1 1 1 . 1 2 Largest Inventory Capacity 25 | 8 25 25 25 25 25 25 25 25 25 25 25 25 25 25 25 25 25 25 25 25 25 25 25 25 Average Capacity 24 | 8 24 25 25 25 25 25 25 25 25 25 25 25 25 25 25 25 25 25 25 25 25 25 25 25 Most Carried 25 | 7 12 25 25 25 25 25 25 24 25 25 25 25 25 25 25 25 25 25 25 25 25 25 20 21 Average Carried 22 | 6 8 23 24 24 24 24 24 24 24 24 24 24 24 24 22 24 24 24 24 24 24 21 17 19 Final Capacity 25 | 8 25 25 25 25 25 25 25 25 25 25 25 25 25 25 25 25 25 25 25 25 25 25 25 25 Final Carried 25 | 7 12 24 25 25 25 25 24 24 25 25 25 25 25 19 25 25 25 25 25 25 25 19 19 18 Class Distribution -------------------- 50% | Scavenger-Tank 13% | Tank 10% | Commander-Tank 10% | Skirmisher 7% | Mutant 4% | Scavenger-Gunner Dominant Class ---------------- Mutant | -10/Materials Tank | -9/Materials Scavenger-Tank | -9/Mines Scavenger-Tank | -8/Materials Tank | -7/Factory Skirmisher | -7/Lower Caves Skirmisher | -7/Lower Caves Mutant | -7/Data Miner Tank | -6/Proximity Caves Scavenger-Tank | -6/Factory Commander-Tank | -6/Extension Commander-Tank | -6/Cetus Commander-Tank | -6/Archives Scavenger-Tank | -6/Hub_04(d) Scavenger-Tank | -5/Factory Scavenger-Tank | -5/Garrison Scavenger-Tank | -5/Factory Scavenger-Tank | -5/Upper Caves Scavenger-Tank | -5/Upper Caves Commander-Tank | -5/Warlord Scavenger-Tank | -4/Proximity Caves Scavenger-Tank | -4/Factory Scavenger-Gunner | -4/Upper Caves Scavenger-Tank | -4/Upper Caves Resources | -11 -10 -9 -9 -8 -7 -7 -7 -7 -6 -6 -6 -6 -6 -6 -5 -5 -5 -5 -5 -5 -4 -4 -4 -4 ----------- Run | Yrd Mat Mat Min Mat Fac Low Low Dat Pro Fac Ext Cet Arc Hub Fac Gar Fac Upp Upp War Pro Fac Upp Upp Matter Collected 22194 | 210 414 879 205 1211 493 467 986 . 277 1690 972 302 209 1592 548 1023 2385 155 734 1509 805 4165 772 191 Remotely 1884 | . . . . . . . . . . . . . . 624 . 467 541 . . . . 252 . . Salvage Created 24211 | 179 1150 1310 222 1576 493 365 511 . 238 1789 1284 200 93 1888 603 1056 2813 . 235 910 1046 4747 1074 429 Parts 1230 | 4 48 106 23 95 41 13 27 . 19 86 57 5 9 83 31 48 134 . 9 17 43 268 40 24 Haulers Intercepted 13 | . 2 5 . 2 . . . . . 1 . . . . . . 1 . . . . 1 1 . Recyclers Shooed 16 | . 3 1 1 3 . . . . . 4 . . . 1 . . . . . . . 3 . . Parts Field Recycled . | . . . . . . . . . . . . . . . . . . . . . . . . . Retrieved Matter . | . . . . . . . . . . . . . . . . . . . . . . . . . Parts Self-Destructed 146 | . . . . . . 11 25 . 17 . . . . . . . . . 9 . 42 . 29 13 Prevented 1 | . . . . . . . 1 . . . . . . . . . . . . . . . . . Kills | -11 -10 -9 -9 -8 -7 -7 -7 -7 -6 -6 -6 -6 -6 -6 -5 -5 -5 -5 -5 -5 -4 -4 -4 -4 ------- Run | Yrd Mat Mat Min Mat Fac Low Low Dat Pro Fac Ext Cet Arc Hub Fac Gar Fac Upp Upp War Pro Fac Upp Upp Combat Hostiles Destroyed 370 | . 16 27 10 26 9 5 11 . 9 16 19 3 . 28 7 20 41 . 4 15 17 69 13 5 Guns 352 | . 16 24 10 26 9 5 10 . 9 14 16 3 . 28 5 20 40 . 4 14 17 64 13 5 Cannons 2 | . . . . . . . . . . 1 1 . . . . . . . . . . . . . AOE 11 | . . 3 . . . . . . . . 2 . . . . . 1 . . . . 5 . . Classes Destroyed 24 | 2 6 3 1 2 1 1 1 . 1 . . . . 2 . . . . . 3 . 1 . . Worker 20 | . 1 . . . . . . . . 5 . . . 7 1 . . . . . . 6 . . Builder 20 | . . 1 . 2 . . . . . 3 2 . . 2 . . 5 . . . . 5 . . Tunneler 8 | 4 . . 1 . . . . . . . . . . 1 1 . 1 . . . . . . . Hauler 13 | . 2 5 . 2 . . . . . 1 . . . . . . 1 . . . . 1 1 . Recycler 19 | 1 6 2 . 1 . . . . . 5 2 . . . . . 1 . . . . 1 . . Mechanic 2 | . 1 . . . . . . . . 1 . . . . . . . . . . . . . . Operator 6 | . . 1 . 2 1 . . . . . . . 1 . 1 . . . . . . . . . Drone 2 | . . . . . . . . . 2 . . . . . . . . . . . . . . . Watcher 25 | . 3 3 . 3 2 . . . . 1 3 . . 1 2 . 4 . . . . 3 . . Swarmer 82 | . 5 14 8 3 . 1 4 . 6 3 4 . . . . 8 4 . 1 . 4 11 5 1 Saboteur 1 | . . . . . . . . . . . . . . . . . . . . . . 1 . . Grunt 119 | . 11 5 1 12 3 2 . . . 3 8 . . 19 . 6 20 . 1 4 5 13 5 1 Brawler 6 | . . . 1 . . 1 . . . . . . . . . . . . . 2 2 . . . Duelist 9 | . . . . 1 . . . . . . 1 . . 2 . . . . . 2 1 2 . . Protector 6 | . . . . . . . . . . . . . . 1 . . . . . 2 . 3 . . Sentry 50 | . . 8 . 9 . 1 . . 1 1 6 . . 2 3 6 2 . 1 . 1 7 1 1 Specialist 7 | . . . . . . . 3 . . . . . . . . . . . . . . 4 . . Hunter 26 | . . . . 1 . . 3 . . 2 . . . . 2 . 2 . 1 . 2 13 . . Programmer 52 | . . . . . 6 . 1 . . 7 . . . 3 2 . 13 . . . 2 14 2 2 Heavy 1 | . . . . . . . . . . . . . . 1 . . . . . . . . . . Cetus Guard 3 | . . . . . . . . . . . . 3 . . . . . . . . . . . . Striker 2 | . . . . . . . . . . . . . . . . . . . . 1 . 1 . . Executioner 4 | . . . . . . . . . . . . . . . . . . . . 4 . . . . Samaritan 4 | . . . . . . 2 . . . . . . . . . . . . . . . . . 2 Thug 1 | . . . . . . . . . . . . . 1 . . . . . . . . . . . Mutant 2 | . . . . . . . . . . . . . . . . . . . . 1 . . 1 . Best Kill Streak 15 | 3 5 4 4 4 3 3 3 . 6 3 8 2 1 10 3 7 6 . 4 6 5 15 3 3 Combat Bots Only 13 | . 5 4 4 3 3 3 3 . 6 3 7 2 . 9 3 7 4 . 4 6 5 13 3 3 Max Kills in Single Turn 3 | 1 1 2 1 2 1 1 1 . 3 2 1 1 1 2 1 2 3 . 1 2 2 3 1 1 Gunslinging 2 | . . . . 1 . . . . 1 . . . . 1 . 1 1 . . 1 . 2 . . Exploded 2 | . . 2 . . . . . . . . 1 . . . . . 1 . . . . 2 . . Melee . | . . . . . . . . . . . . . . . . . . . . . . . . . Uniques/NPCs Destroyed . | . . . . . . . . . . . . . . . . . . . . . . . . . Combat | -11 -10 -9 -9 -8 -7 -7 -7 -7 -6 -6 -6 -6 -6 -6 -5 -5 -5 -5 -5 -5 -4 -4 -4 -4 -------- Run | Yrd Mat Mat Min Mat Fac Low Low Dat Pro Fac Ext Cet Arc Hub Fac Gar Fac Upp Upp War Pro Fac Upp Upp Hostile Shots Fired 3130 | . 126 85 47 151 46 15 94 . 68 151 183 6 6 272 47 72 168 . 24 59 84 1182 155 89 Missed 938 | . 38 17 7 36 15 6 17 . 24 45 53 2 2 55 14 17 40 . 4 18 30 434 40 24 Hits 2192 | . 88 68 40 115 31 9 77 . 44 106 130 4 4 217 33 55 128 . 20 41 54 748 115 65 Melee 21 | . . . . . . . . . . . 2 . . 7 . . . . . . 4 8 . . Projectile 2171 | . 88 68 40 115 31 9 77 . 44 106 128 4 4 210 33 55 128 . 20 41 50 740 115 65 Critical Strikes 102 | . . 3 . 7 2 . 1 . . 5 3 2 . 19 1 2 13 . . 1 4 28 9 2 Part Disruptions 3 | . . . . . . . 1 . . . . . . . . . . . . . . 2 . . Damage Taken 27732 | . 1050 712 335 1123 426 160 1635 . 449 1160 807 64 83 2738 517 622 2009 . 254 682 453 8792 2226 1435 Core 2545 | . 247 101 18 120 14 31 88 . . 74 78 . . 175 8 102 217 . . 83 32 553 351 253 Absorbed by Shields 6198 | . . . . 460 36 . 17 . 132 260 555 61 30 1065 102 216 276 . 80 173 283 2452 . . Reduced by Siege Mode 17 | . . . . . . . . . . . . . . . . . 17 . . . . . . . Redirected to Shielding 102 | . . . . . . . . . . . . . . . . . . . . . . 102 . . Ignored by Resistances 2204 | . . . . . . . . . . 72 . . . 583 104 228 265 . 79 99 240 534 . . Regen/Repaired (Parts) 1213 | . 68 106 . 226 . . . . . 612 . . . . . . . . . 201 . . . . Core Remaining (%) 63 | 100 1 . 70 78 . . . . 81 . . . . 61 . . . . . . 55 . . . Volleys Fired 1172 | 8 116 96 20 92 26 18 39 . 13 69 68 10 7 67 35 35 100 . 6 35 30 181 64 37 Largest 5 | 2 2 3 3 4 4 4 4 . 4 5 5 5 5 5 5 5 5 . 5 5 5 5 3 4 Hottest 240 | 90 100 120 66 100 100 100 100 . 100 196 196 240 154 159 169 167 167 . 160 175 177 174 156 154 Shots Fired 3998 | 16 230 251 60 328 99 71 132 . 54 270 204 44 35 316 104 153 403 1 35 173 148 682 111 78 Gun 3837 | 16 229 239 60 315 97 71 127 . 54 250 162 44 35 316 90 153 386 1 35 173 148 653 111 72 Cannon 126 | . . . . 2 2 . 5 . . 19 36 . . . 14 . 17 . . . . 29 . 2 Launcher 8 | . . 2 . . . . . . . . 6 . . . . . . . . . . . . . Special 27 | . 1 10 . 11 . . . . . 1 . . . . . . . . . . . . . 4 Kinetic 3642 | . 113 238 60 315 97 71 127 . 54 250 162 43 35 316 90 153 386 1 35 173 148 653 66 56 Thermal 297 | 16 117 11 . 11 . . . . . 13 36 1 . . . . 13 . . . . 18 45 16 Explosive 8 | . . 2 . . . . . . . . 6 . . . . . . . . . . . . . Electromagnetic 46 | . . . . 2 2 . 5 . . 6 . . . . 14 . 4 . . . . 11 . 2 Robot Hit Streak 36 | 13 24 16 6 23 12 13 15 . 9 21 36 13 8 19 13 13 14 . 4 14 10 24 15 13 Robot Miss Streak 7 | . 5 7 2 6 5 3 4 . 3 3 4 2 3 3 3 3 3 . 4 5 4 5 4 3 Penetration Max 2 | . . . . . . . . . . 1 . . . 2 . 1 1 . . 1 1 1 1 . Secondary Targets 97 | . 3 1 2 5 . 1 1 . 1 4 7 1 . 12 . 6 12 . 2 5 5 26 3 . Max Gunslinging Chain 3 | . 1 1 1 1 . 1 1 . 1 1 1 1 . 2 . 2 2 . 1 1 1 3 1 . Capacitor 14 | . . . . . . . . . . . . . . . . . . . . . . 14 . . Shots Hit Robots 2473 | 13 155 142 34 203 59 49 83 . 27 169 113 31 25 218 70 89 244 . 16 123 79 396 82 53 Core Hits 1100 | 6 55 66 16 81 22 19 28 . 14 60 61 14 8 88 21 44 106 . 9 61 40 220 44 17 Critical Kills 24 | . . . . 2 1 . . . . 1 1 . . 2 3 1 3 . . . 2 7 1 . Critical Parts Destroyed 51 | . . . . 2 . . 1 . . 1 1 2 1 9 1 5 7 . . 7 3 10 . 1 Critical Strikes 100 | 2 6 . . 5 1 . 1 . . 2 2 2 1 13 7 7 11 . 1 8 6 17 4 4 Burn 14 | 2 6 . . . . . . . . . . . . . . . . . . . . . 3 3 Meltdown 1 | . . . . . . . . . . . 1 . . . . . . . . . . . . . Destroy 85 | . . . . 5 1 . 1 . . 2 1 2 1 13 7 7 11 . 1 8 6 17 1 1 Melee Attacks 8 | . . . . . . 4 1 . . . . . 3 . . . . . . . . . . . Impact 5 | . . . . . . 4 1 . . . . . . . . . . . . . . . . . Slashing . | . . . . . . . . . . . . . . . . . . . . . . . . . Piercing . | . . . . . . . . . . . . . . . . . . . . . . . . . Sneak Attacks 3 | . . . . . . . . . . . . . 3 . . . . . . . . . . . Combat Hostiles . | . . . . . . . . . . . . . . . . . . . . . . . . . Follow-up Attacks . | . . . . . . . . . . . . . . . . . . . . . . . . . Damage Inflicted 55190 | 157 1874 1881 413 2800 1156 830 1464 . 588 3319 2650 656 521 5903 1782 2512 6960 . 328 3418 2112 11035 1897 934 Guns 51350 | 157 1874 1652 413 2708 1112 830 1283 . 588 3045 1793 656 521 5898 1546 2512 6549 . 328 3418 2112 9585 1897 873 Cannons 1648 | . . . . 68 44 . 134 . . 269 324 . . . 236 . 137 . . . . 378 . 58 Explosions 2135 | . . 229 . . . . 47 . . . 533 . . . . . 274 . . . . 1052 . . Melee . | . . . . . . . . . . . . . . . . . . . . . . . . . Ramming 33 | . . . . . . . . . . 5 . . . 5 . . . . . . . 20 . 3 Kinetic 49126 | . 869 1642 413 2708 1112 830 1283 . 588 3045 1793 656 521 5898 1546 2512 6549 . 328 3418 2112 9585 1065 653 Thermal 3932 | 157 1005 10 . 24 . . 47 . . 164 324 . . . . . 191 . . . . 958 832 220 Explosive 762 | . . 229 . . . . . . . . 533 . . . . . . . . . . . . . Electromagnetic 1337 | . . . . 68 44 . 134 . . 105 . . . . 236 . 220 . . . . 472 . 58 Impact . | . . . . . . . . . . . . . . . . . . . . . . . . . Slashing . | . . . . . . . . . . . . . . . . . . . . . . . . . Piercing . | . . . . . . . . . . . . . . . . . . . . . . . . . Highest Corruption 40 | . . . . 3 7 7 17 17 17 1 1 1 1 26 2 2 12 12 12 12 4 32 37 40 Average Corruption 9 | . . . . 1 5 7 10 17 17 1 1 1 1 4 1 2 7 12 12 4 3 14 36 37 Corruption Purged 3 | . . . . . . . . . . . . . 1 . . . 2 . . . . . . . Corruption Blocked . | . . . . . . . . . . . . . . . . . . . . . . . . . Effects 881 | . . . . 7 33 88 113 9 38 12 19 7 1 16 12 12 97 60 67 13 29 78 132 38 Message Errors 204 | . . . . 1 10 25 25 3 6 1 4 . . 4 4 4 20 17 18 2 9 14 30 7 Matter Fused 207 | . . . . 2 7 24 20 3 10 4 4 3 1 4 2 2 22 15 14 4 7 18 35 6 Heat Flow Errors 93 | . . . . . 2 8 12 1 5 2 1 2 . . 2 . 10 7 8 2 3 8 15 5 Energy Discharges 110 | . . . . 1 5 12 15 . 5 2 2 1 . 2 . 3 15 6 4 2 3 14 10 8 Parts Rejected 9 | . . . . . . . 1 . . 2 1 . . 1 . . 1 . . . . 2 1 . Parts Fused 11 | . . . . . . . 2 . 2 . . . . . . 1 . 1 1 . . 1 3 . Data Loss (minor) 99 | . . . . 3 6 7 13 1 3 . 3 . . 3 . 1 9 9 12 2 3 5 14 5 Data Loss (major) 42 | . . . . . 2 5 6 1 2 . 1 . . . 3 . 5 4 4 . 4 . 5 . Misfires 29 | . . . . . . 1 3 . 2 . 1 . . . 1 1 3 1 5 1 . 1 7 2 Alerts 21 | . . . . . 1 4 6 . 2 . 1 1 . . . . 3 . 1 . . 1 1 . Misdirections 7 | . . . . . . . 3 . 1 . . . . 1 . . 1 . . . . 1 . . Weapon Failures 49 | . . . . . . 2 7 . . 1 1 . . 1 . . 8 . . . . 13 11 5 Overload Shots 1 | . . . . . . . . . . . . 1 . . . . . . . . . . . . Overflow Damage 96 | . . 2 . 28 . . . . . 1 33 . . . . . 15 . . . . 17 . . Projectiles 82 | . . . . 28 . . . . . 1 33 . . . . . 15 . . . . 5 . . Explosions 14 | . . 2 . . . . . . . . . . . . . . . . . . . 12 . . Melee . | . . . . . . . . . . . . . . . . . . . . . . . . . Knockbacks . | . . . . . . . . . . . . . . . . . . . . . . . . . Impact . | . . . . . . . . . . . . . . . . . . . . . . . . . Kinetic . | . . . . . . . . . . . . . . . . . . . . . . . . . Secondary . | . . . . . . . . . . . . . . . . . . . . . . . . . Self-Inflicted Damage 364 | . . 26 . . . . 46 . . . 2 . . 90 . . 64 . . . . 136 . . Shots 8 | . . 1 . . . . 1 . . . 1 . . 1 . . 1 . . . . 3 . . Rammed 5 | . . . . . . . . . . 2 . . . 1 . . . . . . . 1 . 1 Targets Rammed 6 | . . . . . . . . . . 2 . . . 1 . . . . . . . 2 . 1 Kicked . | . . . . . . . . . . . . . . . . . . . . . . . . . Crushed 1 | . . . . . . . . . . . . . . . . . . . . . . 1 . . Highest Temperature 382 | 90 280 90 . 181 347 315 322 158 279 213 293 243 6 236 78 41 245 252 248 221 382 314 250 236 Average Temperature 65 | 35 50 26 . 39 108 101 104 92 106 47 89 100 4 43 21 12 44 92 83 52 69 80 73 50 Received Heat Transfer 4540 | . 525 180 24 428 56 45 45 . 36 135 211 . . 810 55 165 323 . 49 94 37 757 333 232 Effects 17 | . 1 . . . 2 1 4 . . . . . . . . . 3 . . . 2 4 . . Energy Bleed 1 | . 1 . . . . . . . . . . . . . . . . . . . . . . . Interference 12 | . . . . . . 1 3 . . . . . . . . . 3 . . . 1 4 . . Matter Decay 1 | . . . . . . . . . . . . . . . . . . . . . 1 . . . Short Circuit 1 | . . . . . . . 1 . . . . . . . . . . . . . . . . . Damage (minor) 2 | . . . . . 2 . . . . . . . . . . . . . . . . . . . Siege Activations 5 | . . . . . . . . . . . . . . . . . 5 . . . . . . . Total Turns 109 | . . . . . . . . . . . . . . . . . 109 . . . . . . . Longest Duration 49 | . . . . . . . . . . . . . . . . . 49 . . . . . . . Martial Activations . | . . . . . . . . . . . . . . . . . . . . . . . . . Shielding Activations . | . . . . . . . . . . . . . . . . . . . . . . . . . Robots Disrupted . | . . . . . . . . . . . . . . . . . . . . . . . . . Combat Hostiles . | . . . . . . . . . . . . . . . . . . . . . . . . . Robots Corrupted 5 | . . . . . . . 1 . . 1 . . . . 2 . 1 . . . . . . . Combat Hostiles 4 | . . . . . . . 1 . . 1 . . . . 2 . . . . . . . . . Parts Fried 16 | . . . . 2 . . . . . 2 . . . . 7 . 3 . . . . 2 . . Impact Corruptions . | . . . . . . . . . . . . . . . . . . . . . . . . . Robots Melted 1 | . . . . . . . . . . . 1 . . . . . . . . . . . . . Combat Hostiles . | . . . . . . . . . . . . . . . . . . . . . . . . . Parts Melted 26 | 4 3 . . . . . . . . . 6 . . . . . . . . 2 . . 5 6 Heat Transferred 8246 | 569 3275 25 . 50 . . 50 . . 250 500 . . . . . 150 . . . . 635 1942 800 Parts Sabotaged 1 | . . . . . . . . . . . . . . . . . . . . . . 1 . . Parts Stolen . | . . . . . . . . . . . . . . . . . . . . . . . . . Parts Stripped . | . . . . . . . . . . . . . . . . . . . . . . . . . Power Chain Reactions 3 | . . . . . . . 1 . . . . . . . . . . . . . . 2 . . Alert | -11 -10 -9 -9 -8 -7 -7 -7 -7 -6 -6 -6 -6 -6 -6 -5 -5 -5 -5 -5 -5 -4 -4 -4 -4 ------- Run | Yrd Mat Mat Min Mat Fac Low Low Dat Pro Fac Ext Cet Arc Hub Fac Gar Fac Upp Upp War Pro Fac Upp Upp Maximum Alert Level 4 | . . 2 1 1 . . . . . 2 1 2 1 4 2 3 3 . . . . 4 . . Low Security (%) 54 | 100 100 50 71 77 100 . . . . 66 82 67 4 42 . . 2 . . . . 21 . . Level 1 21 | . . 36 28 22 . . . . . 28 17 20 95 16 36 4 50 . . . . 2 . . Level 2 12 | . . 12 . . . . . . . 4 . 11 . 14 63 48 18 . . . . 26 . . Level 3 8 | . . . . . . . . . . . . . . 20 . 46 28 . . . . 22 . . Level 4 3 | . . . . . . . . . . . . . . 6 . . . . . . . 27 . . Level 5 . | . . . . . . . . . . . . . . . . . . . . . . . . . High Security . | . . . . . . . . . . . . . . . . . . . . . . . . . Max Security . | . . . . . . . . . . . . . . . . . . . . . . . . . Peak Influence 1526 | 10 140 460 254 223 95 . . . . 478 271 493 333 1141 543 986 1082 . . . . 1526 . . Initial 533 | . 3 . 174 . 95 . . . . 478 183 36 182 67 533 296 517 . . . . 56 . . Average 284 | 2 28 187 114 146 15 . . . . 197 128 146 260 404 428 701 519 . . . . 727 . . Influence Increases 14597 | 25 537 939 322 801 299 110 240 . 170 1098 608 849 221 1707 372 700 1541 . 90 679 395 2459 335 100 Destroy 0b10 Robot/C 8000 | . 320 540 240 520 180 100 220 . 140 320 400 360 80 720 140 400 820 . 80 400 340 1320 260 100 Destroy 0b10 Robot/NC 640 | 25 65 60 5 50 15 . . . 10 80 35 10 5 70 25 . 60 . . 20 . 95 10 . Destroy Leader 1554 | . 60 156 40 160 74 10 20 . 20 124 56 30 . 182 64 30 160 . 10 . 40 298 20 . Allied During Kill 906 | . . . 7 3 . . . . . . 56 400 85 246 . . . . . 109 . . . . Successful Hack 310 | . 45 67 . 12 12 . . . . 21 31 . . . 21 . 58 . . . . 43 . . Disable Machine 990 | . . 30 . 15 15 . . . . 90 . 15 45 165 60 30 195 . . . . 330 . . Anti-Garrison Action 250 | . . . . . . . . . . . . . . 150 . 100 . . . . . . . . Destroy Structure 837 | . 2 41 . 11 3 . . . . 13 30 34 6 129 62 20 158 . . . . 328 . . Advance Influence 450 | . . . . . . . . . . 450 . . . . . . . . . . . . . . Partial Spotted 15 | . . . . 15 . . . . . . . . . . . . . . . . . . . . Lose Combat Pursuer 645 | . 45 45 30 15 . . . . . . . . . 45 . 120 90 . . 150 15 45 45 . Influence Decreases 14571 | 20 539 494 770 590 424 196 171 69 124 769 918 457 485 811 1038 137 1460 930 227 137 848 1090 1340 527 Entered New Map 3913 | . 2 3 274 . 116 32 . 69 . 18 192 29 275 126 556 127 469 396 27 . 542 33 540 87 Time Decay 8783 | 20 427 481 476 560 308 164 151 . 114 731 666 358 170 455 452 . 716 534 190 77 286 487 650 310 Lost Part 1094 | . 110 10 20 30 . . 20 . 10 20 20 10 . 70 30 10 24 . 10 . 10 410 150 130 Lost Ally 380 | . . . . . . . . . . . 40 60 40 160 . . . . . 60 10 10 . . Purge Threat 401 | . . . . . . . . . . . . . . . . . 251 . . . . 150 . . Squads Dispatched 81 | . 3 3 1 10 4 . . . . 8 1 . . 12 4 . 13 . . . 1 21 . . Investigation 10 | . 2 . 1 1 . . . . . 1 1 . . . . . 3 . . . . 1 . . Extermination 22 | . . . . . 3 . . . . 7 . . . 2 2 . 5 . . . . 3 . . Reinforcement 23 | . 1 2 . 2 1 . . . . . . . . 6 1 . 3 . . . . 7 . . Assault 12 | . . 1 . . . . . . . . . . . 3 . . 2 . . . 1 5 . . Garrison 14 | . . . . 7 . . . . . . . . . 1 1 . . . . . . 5 . . Intercept . | . . . . . . . . . . . . . . . . . . . . . . . . . Searches Triggered . | . . . . . . . . . . . . . . . . . . . . . . . . . Data Miner Redirects 8 | . . . . . . . . . . 1 . . . . . . 1 . . . . 6 . . Construction Impeded 8 | . . . . . . . . . . . . . . 3 . . 2 . . . . 3 . . Haulers Reinforced 3 | . . . . . . . . . . . . . . 1 . . . . . . . 2 . . Active Scanning Responses . | . . . . . . . . . . . . . . . . . . . . . . . . . Cargo Convoy Interrupts 1 | . . . . . . . . . . . . . . . . . . . . . . 1 . . Stealth | -11 -10 -9 -9 -8 -7 -7 -7 -7 -6 -6 -6 -6 -6 -6 -5 -5 -5 -5 -5 -5 -4 -4 -4 -4 --------- Run | Yrd Mat Mat Min Mat Fac Low Low Dat Pro Fac Ext Cet Arc Hub Fac Gar Fac Upp Upp War Pro Fac Upp Upp Distress Signals 19 | . . 2 . 3 . . . . . . 2 2 . 1 1 . 4 . . . . 4 . . Communications Jammed . | . . . . . . . . . . . . . . . . . . . . . . . . . Distress Signals . | . . . . . . . . . . . . . . . . . . . . . . . . . Times Spotted 608 | . 31 43 13 36 14 5 11 . 9 18 23 9 7 53 12 29 57 . 4 95 18 97 16 8 Peak Tracking Total 20 | . 5 6 4 4 3 3 1 . 3 3 8 5 1 9 2 7 5 . 3 20 5 9 5 5 Tactical Retreats 28 | . 2 2 1 1 . . . . . . . . . 3 . 8 3 . . 4 1 2 1 . Traps | -11 -10 -9 -9 -8 -7 -7 -7 -7 -6 -6 -6 -6 -6 -6 -5 -5 -5 -5 -5 -5 -4 -4 -4 -4 ------- Run | Yrd Mat Mat Min Mat Fac Low Low Dat Pro Fac Ext Cet Arc Hub Fac Gar Fac Upp Upp War Pro Fac Upp Upp Traps Triggered 12 | . 2 . . 2 . . . . . . 1 . . . 1 1 5 . . . . . . . Indirectly . | . . . . . . . . . . . . . . . . . . . . . . . . . Trap Hack Attempts . | . . . . . . . . . . . . . . . . . . . . . . . . . Triggered . | . . . . . . . . . . . . . . . . . . . . . . . . . Disarmed 4 | . . . . . . . . . . . 4 . . . . . . . . . . . . . Reprogrammed . | . . . . . . . . . . . . . . . . . . . . . . . . . Reused . | . . . . . . . . . . . . . . . . . . . . . . . . . Traps Extracted . | . . . . . . . . . . . . . . . . . . . . . . . . . Installed . | . . . . . . . . . . . . . . . . . . . . . . . . . Triggered . | . . . . . . . . . . . . . . . . . . . . . . . . . Machines | -11 -10 -9 -9 -8 -7 -7 -7 -7 -6 -6 -6 -6 -6 -6 -5 -5 -5 -5 -5 -5 -4 -4 -4 -4 ---------- Run | Yrd Mat Mat Min Mat Fac Low Low Dat Pro Fac Ext Cet Arc Hub Fac Gar Fac Upp Upp War Pro Fac Upp Upp Machines Disabled 70 | . . 2 . 1 1 1 . . . 6 . 1 3 12 4 4 13 . . . . 22 . . Max in Single Turn 5 | . . 2 . 1 1 1 . . . 1 . 1 1 5 2 1 3 . . . . 5 . . Garrison Access 3 | . . . . . 1 . . . . . . . . 2 . . . . . . . . . . Garrison Relay 2 | . . . . . . . . . . . . . . . . 2 . . . . . . . . Network Hub 1 | . . . . . . . . . . . . . . 1 . . . . . . . . . . Machines Repaired . | . . . . . . . . . . . . . . . . . . . . . . . . . Machines Dismantled . | . . . . . . . . . . . . . . . . . . . . . . . . . Machines Sabotaged . | . . . . . . . . . . . . . . . . . . . . . . . . . Overloaded Fab Kills . | . . . . . . . . . . . . . . . . . . . . . . . . . Hacking | -11 -10 -9 -9 -8 -7 -7 -7 -7 -6 -6 -6 -6 -6 -6 -5 -5 -5 -5 -5 -5 -4 -4 -4 -4 --------- Run | Yrd Mat Mat Min Mat Fac Low Low Dat Pro Fac Ext Cet Arc Hub Fac Gar Fac Upp Upp War Pro Fac Upp Upp Machines Accessed 70 | . 10 10 1 6 2 1 . 4 . 5 6 . . 3 2 1 6 1 . 1 . 9 1 1 Terminals 42 | . 7 8 . 3 1 1 . . . 4 6 . . 2 . 1 3 . . . . 6 . . Fabricators 1 | . . . . . . . . . . . . . . . . . 1 . . . . . . . Repair Stations 8 | . 1 1 . 2 . . . . . 1 . . . . . . 1 . . . . 2 . . Recycling Units 5 | . 2 1 . . . . . . . . . . . . 1 . 1 . . . . . . . Scanalyzers . | . . . . . . . . . . . . . . . . . . . . . . . . . Garrison Access 5 | . . . . 1 1 . . . . . . . . 1 1 . . . . . . 1 . . Total Hacks 249 | . 32 29 1 27 4 6 . 30 . 14 18 . . 7 6 1 25 1 . 1 . 45 1 1 Successful 146 | . 24 16 1 14 2 6 . 30 . 10 7 . . 1 4 . 11 1 . 1 . 16 1 1 Failed 103 | . 8 13 . 13 2 . . . . 4 11 . . 6 2 1 14 . . . . 29 . . Catastrophic 19 | . . 3 . . . . . . . . 1 . . 1 . 1 5 . . . . 8 . . Database Lockouts . | . . . . . . . . . . . . . . . . . . . . . . . . . Manual 122 | . 22 27 . 12 . . 1 . . 10 9 1 . 6 2 1 6 . . 1 . 24 . . Terminals 154 | . 24 25 . 12 2 6 . . . 9 18 . . 6 . 1 15 . . . . 36 . . Fabricators 2 | . . . . . . . . . . . . . . . . . 2 . . . . . . . Repair Stations 34 | . 4 2 . 12 . . . . . 5 . . . . . . 4 . . . . 7 . . Recycling Units 14 | . 4 2 . . . . . . . . . . . . 4 . 4 . . . . . . . Scanalyzers . | . . . . . . . . . . . . . . . . . . . . . . . . . Garrison Access 10 | . . . . 3 2 . . . . . . . . 1 2 . . . . . . 2 . . Terminal Hacks 68 | . 6 2 1 2 1 6 . 30 . . 5 . . . . . 5 1 . 1 . 6 1 1 Record 17 | . . . . . . 6 . 11 . . . . . . . . . . . . . . . . Part Schematic 12 | . 1 . . . . . . 9 . . . . . . . . 1 . . . . 1 . . Robot Schematic 8 | . . . . . . . . 7 . . . . . . . . . . . . . 1 . . Prototype ID Bank 3 | . . . . . . . . 3 . . . . . . . . . . . . . . . . Open Door 5 | . . . 1 . . . . . . . . . . . . . . 1 . 1 . . 1 1 Branch Access Points 2 | . . . . . . . . . . . . . . . . . 1 . . . . 1 . . Terminal Index 4 | . 1 1 . 1 . . . . . . . . . . . . . . . . . 1 . . Alert Level 5 | . 1 1 . 1 . . . . . . 1 . . . . . 1 . . . . . . . Unreport Threat 3 | . . . . . . . . . . . . . . . . . 2 . . . . 1 . . Disarm Traps 1 | . . . . . . . . . . . 1 . . . . . . . . . . . . . Dispatch Records 1 | . 1 . . . . . . . . . . . . . . . . . . . . . . . Maintenance Status 1 | . . . . . 1 . . . . . . . . . . . . . . . . . . . Patrol Status 1 | . . . . . . . . . . . 1 . . . . . . . . . . . . . Registered Components 1 | . 1 . . . . . . . . . . . . . . . . . . . . . . . Zone Layout 4 | . 1 . . . . . . . . . 2 . . . . . . . . . . 1 . . Fabricator Hacks 2 | . . . . . . . . . . . . . . . . . 2 . . . . . . . Load Schematic 1 | . . . . . . . . . . . . . . . . . 1 . . . . . . . Build 1 | . . . . . . . . . . . . . . . . . 1 . . . . . . . Repair Station Hacks 21 | . 4 2 . 8 . . . . . 4 . . . . . . 1 . . . . 2 . . Scan Component 12 | . 2 1 . 4 . . . . . 2 . . . . . . 1 . . . . 2 . . Repair 9 | . 2 1 . 4 . . . . . 2 . . . . . . . . . . . . . . Recycling Unit Hacks 3 | . 1 . . . . . . . . . . . . . 1 . 1 . . . . . . . Report Inventory 1 | . 1 . . . . . . . . . . . . . . . . . . . . . . . Retrieve Components 2 | . . . . . . . . . . . . . . . 1 . 1 . . . . . . . Scanalyzer . | . . . . . . . . . . . . . . . . . . . . . . . . . Garrison Access Hacks 3 | . . . . . 1 . . . . . . . . 1 1 . . . . . . . . . Unlock Access 1 | . . . . . . . . . . . . . . . 1 . . . . . . . . . Seal Access 2 | . . . . . 1 . . . . . . . . 1 . . . . . . . . . . Unauthorized Hacks 49 | . 13 12 . 4 . . . . . 6 2 . . . 2 . 2 . . . . 8 . . Terminals 39 | . 10 10 . 4 . . . . . 5 2 . . . . . . . . . . 8 . . Assimilate 2 | . . . . . . . . . . . . . . . . . . . . . . 2 . . Botnet 10 | . 3 2 . . . . . . . 1 2 . . . . . . . . . . 2 . . Disrupt 3 | . 1 1 . 1 . . . . . . . . . . . . . . . . . . . . Operators 3 | . . 1 . . . . . . . 1 . . . . . . . . . . . 1 . . Skim 21 | . 6 6 . 3 . . . . . 3 . . . . . . . . . . . 3 . . Fabricators . | . . . . . . . . . . . . . . . . . . . . . . . . . Repair Stations 1 | . . . . . . . . . . 1 . . . . . . . . . . . . . . Patch 1 | . . . . . . . . . . 1 . . . . . . . . . . . . . . Recycling Units 9 | . 3 2 . . . . . . . . . . . . 2 . 2 . . . . . . . Monitor 2 | . . . . . . . . . . . . . . . 1 . 1 . . . . . . . Reject 2 | . 1 1 . . . . . . . . . . . . . . . . . . . . . . Recyclers 3 | . 1 . . . . . . . . . . . . . 1 . 1 . . . . . . . Mask 2 | . 1 1 . . . . . . . . . . . . . . . . . . . . . . Scanalyzers . | . . . . . . . . . . . . . . . . . . . . . . . . . Garrison Access . | . . . . . . . . . . . . . . . . . . . . . . . . . Data Cores Recovered 1 | . . . . . . . . . . . . . . 1 . . . . . . . . . . Used . | . . . . . . . . . . . . . . . . . . . . . . . . . Hacking Detections 52 | . 7 8 . 5 2 . . . . 5 6 . . 2 2 1 6 . . . . 8 . . Full Trace Events 6 | . . 1 . 1 . . . . . . 1 . . . . . 2 . . . . 1 . . Feedback Events . | . . . . . . . . . . . . . . . . . . . . . . . . . Feedback Blocked . | . . . . . . . . . . . . . . . . . . . . . . . . . Robot Schematics Acquired 8 | . . . . . . . . 7 . . . . . . . . . . . . . 1 . . Robots Built . | . . . . . . . . . . . . . . . . . . . . . . . . . Authchips . | . . . . . . . . . . . . . . . . . . . . . . . . . Time . | . . . . . . . . . . . . . . . . . . . . . . . . . Total Robot Build Rating . | . . . . . . . . . . . . . . . . . . . . . . . . . Part Schematics Acquired 12 | . 1 . . . . . . 9 . . . . . . . . 1 . . . . 1 . . Parts Built 1 | . . . . . . . . . . . . . . . . . 1 . . . . . . . Authchips . | . . . . . . . . . . . . . . . . . . . . . . . . . Time 53 | . . . . . . . . . . . . . . . . . 53 . . . . . . . Total Part Build Rating 6 | . . . . . . . . . . . . . . . . . 6 . . . . . . . Parts Repaired 9 | . 2 1 . 4 . . . . . 2 . . . . . . . . . . . . . . Time 300 | . 52 32 . 134 . . . . . 82 . . . . . . . . . . . . . . Parts Recycled . | . . . . . . . . . . . . . . . . . . . . . . . . . Recycled Matter . | . . . . . . . . . . . . . . . . . . . . . . . . . Retrieved Matter . | . . . . . . . . . . . . . . . . . . . . . . . . . Retrieved Components 4 | . . . . . . . . . . . . . . . 2 . 2 . . . . . . . Parts Scanalyzed . | . . . . . . . . . . . . . . . . . . . . . . . . . Part Schematics Acquired . | . . . . . . . . . . . . . . . . . . . . . . . . . Parts Damaged . | . . . . . . . . . . . . . . . . . . . . . . . . . Bothacking | -11 -10 -9 -9 -8 -7 -7 -7 -7 -6 -6 -6 -6 -6 -6 -5 -5 -5 -5 -5 -5 -4 -4 -4 -4 ------------ Run | Yrd Mat Mat Min Mat Fac Low Low Dat Pro Fac Ext Cet Arc Hub Fac Gar Fac Upp Upp War Pro Fac Upp Upp Used RIF Installer . | . . . . . . . . . . . . . . . . . . . . . . . . . Robots Hacked 5 | . . . . . . . . . . . . . 3 . . . . . . . . . . 2 Non-combat . | . . . . . . . . . . . . . . . . . . . . . . . . . Combat 5 | . . . . . . . . . . . . . 3 . . . . . . . . . . 2 Robot Hacks Applied 6 | . . . . . . . . . . . . . 3 . . . . . . . . . . 3 parse_system 6 | . . . . . . . . . . . . . 3 . . . . . . . . . . 3 Relay Couplers Released 19 | . . . . . . . . . . . . . . 2 . 9 . . . . . 8 . . Machine Destruction 10 | . . . . . . . . . . . . . . 1 . 9 . . . . . . . . Programmers 9 | . . . . . . . . . . . . . . 1 . . . . . . . 8 . . Fabnet Peak Effective % . | . . . . . . . . . . . . . . . . . . . . . . . . . Robots Rewired 12 | . . . . . . . . . . . 7 . . . . . . . . 5 . . . . Allies Hacked . | . . . . . . . . . . . . . . . . . . . . . . . . . Hacks Repelled . | . . . . . . . . . . . . . . . . . . . . . . . . . Allies | -11 -10 -9 -9 -8 -7 -7 -7 -7 -6 -6 -6 -6 -6 -6 -5 -5 -5 -5 -5 -5 -4 -4 -4 -4 -------- Run | Yrd Mat Mat Min Mat Fac Low Low Dat Pro Fac Ext Cet Arc Hub Fac Gar Fac Upp Upp War Pro Fac Upp Upp Total Allies 31 | . . . 2 . . . . . . . 18 5 . . . . . . . 5 . 1 . . Largest Group 18 | . . . 2 1 . . . . . . 13 18 15 10 . . . . . 5 1 1 . . Highest-Rated Group 959 | . . . 39 31 . . . . . . 503 959 801 475 . . . . . 301 64 10 . . Highest-Rated Ally 159 | . . . 31 31 . . . . . . 159 159 143 96 . . . . . 68 64 10 . . Initial Warlord ECA Mod 28 | . . . . . . . . . . . . . . . . . 4 4 4 4 3 3 3 3 Total Orders 13 | . . . . . . . . . . . 2 . . 1 . . . . . 2 8 . . . STAY 7 | . . . . . . . . . . . 1 . . 1 . . . . . 1 4 . . . FOLLOW 6 | . . . . . . . . . . . 1 . . . . . . . . 1 4 . . . Ally Attacks 301 | . . . 6 11 . . . . . . 12 103 45 94 . . . . . 30 . . . . Total Damage 8395 | . . . 106 146 . . . . . . 322 2796 962 2076 . . . . . 1987 . . . . Kills 47 | . . . 2 . . . . . . . 1 17 5 13 . . . . . 9 . . . . Allies Corrupted 2 | . . . . . . . . . . . 1 . . . . . . . . 1 . . . . Allies Melted 1 | . . . . . . . . . . . . 1 . . . . . . . . . . . . Intel | -11 -10 -9 -9 -8 -7 -7 -7 -7 -6 -6 -6 -6 -6 -6 -5 -5 -5 -5 -5 -5 -4 -4 -4 -4 ------- Run | Yrd Mat Mat Min Mat Fac Low Low Dat Pro Fac Ext Cet Arc Hub Fac Gar Fac Upp Upp War Pro Fac Upp Upp Active Infowar (turns) 32453 | 5 306 1267 . 2851 1620 2672 1913 . . 931 894 . 4 780 1130 1153 3309 1504 1884 2307 1539 3315 2386 683 Optics 19416 | . . . . . . . 217 . . . . . . . 1130 1153 3309 1504 1884 2307 1539 3304 2386 683 Sensors 16682 | . . . . . 312 2672 1696 . . 931 894 . 4 780 35 . 697 1501 1884 1902 1488 1646 240 . Terrain 1 | . . . . . . . . . . . . . . . 1 . . . . . . . . . Seismic 5735 | 5 306 1265 . 2851 1308 . . . . . . . . . . . . . . . . . . . T.N.C. 2 | . . 2 . . . . . . . . . . . . . . . . . . . . . . Jamming 2 | . . . . . . . . . . . . . . . . . . . . . . . 2 . Robot Analysis Total . | . . . . . . . . . . . . . . . . . . . . . . . . . Derelict Logs Recovered 17 | . . . 2 . . 2 1 . 2 . . . . . . . . 3 2 . 1 . 2 2 Drone Launches . | . . . . . . . . . . . . . . . . . . . . . . . . . Drone Recoveries . | . . . . . . . . . . . . . . . . . . . . . . . . . Exploration | -11 -10 -9 -9 -8 -7 -7 -7 -7 -6 -6 -6 -6 -6 -6 -5 -5 -5 -5 -5 -5 -4 -4 -4 -4 ------------- Run | Yrd Mat Mat Min Mat Fac Low Low Dat Pro Fac Ext Cet Arc Hub Fac Gar Fac Upp Upp War Pro Fac Upp Upp Turns Passed 46865 | 71 2693 2534 1629 3119 1946 2756 2825 199 745 3616 2540 1150 341 1455 1133 1153 3309 1504 1884 2307 1539 3348 2386 683 Spaces Moved 15974 | 13 1200 929 680 821 706 1105 1054 81 269 998 747 420 122 408 385 374 1011 604 749 798 534 963 841 162 Core . | . . . . . . . . . . . . . . . . . . . . . . . . . Treads 12760 | . . 3 . 426 706 1105 1054 81 269 998 747 420 122 408 385 374 1011 604 749 798 534 963 841 162 Legs 31 | 13 18 . . . . . . . . . . . . . . . . . . . . . . . Wheels 3183 | . 1182 926 680 395 . . . . . . . . . . . . . . . . . . . . Hover . | . . . . . . . . . . . . . . . . . . . . . . . . . Flight . | . . . . . . . . . . . . . . . . . . . . . . . . . Fastest Speed 95 | 120 95 175 150 150 240 240 235 238 238 240 240 240 240 243 246 243 163 245 247 247 250 170 165 245 Average Speed 238 | 120 159 190 202 261 240 240 240 238 256 293 266 240 242 254 246 243 221 246 247 247 250 249 256 352 Slowest Speed 490 | 120 175 320 210 320 240 240 312 238 323 323 320 240 243 326 246 246 246 247 247 250 250 250 410 490 Overloaded Moves . | . . . . . . . . . . . . . . . . . . . . . . . . . Propulsion Burnouts . | . . . . . . . . . . . . . . . . . . . . . . . . . Robots Hopped . | . . . . . . . . . . . . . . . . . . . . . . . . . Potential Cave-ins 8 | . . . . . . . . . . . 8 . . . . . . . . . . . . . Cave-ins Triggered 2 | . . . . . . . 2 . . . . . . . . . . . . . . . . . Exploration Rate (%) 59 | 2 99 85 99 54 15 98 84 68 46 18 66 74 78 32 11 50 23 87 86 85 81 35 87 22 Regions Visited 24 Branch Regions 15 Pre-discovered Areas 9 | . 2 3 . . . 1 . 1 . . . . . . . . . 1 . . . . . 1 Known Exits Taken 17 | . . 1 1 . 1 1 1 1 1 1 1 1 1 1 1 . 1 1 . . . 1 1 . Unknown Exits Taken 6 | 1 1 . . 1 . . . . . . . . . . . . . . 1 1 1 . . . Scrap Searched 22 | . . . 4 . . 2 3 . 1 . . . . . . . . 4 5 . 1 . 1 1 Spaces Dug 59 | . 1 7 . 8 . 2 1 . . 4 17 . . . . . 6 . . . 5 8 . . Terrain Destroyed 732 | . 1 51 . 10 . 2 9 . . 9 59 . 2 179 37 11 92 . 3 33 63 162 9 . Melee 3 | . . . . . . 2 1 . . . . . . . . . . . . . . . . . Projectile 371 | . 1 10 . 10 . . . . . 9 31 . 2 38 17 11 55 . 3 33 62 80 9 . AOE 348 | . . 41 . . . . 8 . . . 28 . . 141 20 . 33 . . . . 77 . . Terrain Rammed . | . . . . . . . . . . . . . . . . . . . . . . . . . Walls Destroyed . | . . . . . . . . . . . . . . . . . . . . . . . . . Machines Disabled . | . . . . . . . . . . . . . . . . . . . . . . . . . Actions | -11 -10 -9 -9 -8 -7 -7 -7 -7 -6 -6 -6 -6 -6 -6 -5 -5 -5 -5 -5 -5 -4 -4 -4 -4 --------- Run | Yrd Mat Mat Min Mat Fac Low Low Dat Pro Fac Ext Cet Arc Hub Fac Gar Fac Upp Upp War Pro Fac Upp Upp Total 22332 | 52 1750 1514 892 1578 918 1171 1283 88 304 1531 1173 541 151 644 519 550 1865 623 767 1049 659 1532 960 218 Wait 4076 | 30 390 389 176 571 151 33 157 . 13 370 255 87 6 126 44 119 666 3 1 147 83 233 18 8 Move 15949 | 12 1199 928 679 820 705 1104 1053 80 268 997 746 419 121 407 384 372 1010 603 748 797 533 962 840 162 Hop . | . . . . . . . . . . . . . . . . . . . . . . . . . Pick Up 215 | 1 20 34 5 21 11 3 6 . 3 15 6 6 1 5 14 3 16 5 3 5 1 25 4 2 Fast Attach 177 | 1 4 4 1 8 1 . 4 4 . 15 9 4 4 7 10 3 20 3 2 14 4 34 18 3 Attach 114 | . 9 4 2 7 2 . 6 . 1 7 5 . 1 9 7 2 6 . 1 2 1 31 8 3 Detach 24 | . . . . . . . 1 . . 1 1 . . 2 3 . 1 . . . . 10 4 1 Swap 248 | . 6 30 4 30 11 6 8 . 4 31 18 4 2 10 9 9 24 2 2 7 3 27 1 . Drop 272 | . 6 29 5 29 11 3 8 4 2 24 15 11 6 10 13 7 22 7 4 21 4 27 3 1 Fire 1172 | 8 116 96 20 92 26 18 39 . 13 69 68 10 7 67 35 35 100 . 6 35 30 181 64 37 Melee 8 | . . . . . . 4 1 . . . . . 3 . . . . . . . . . . . Ram . | . . . . . . . . . . . . . . . . . . . . . . . . . Kick . | . . . . . . . . . . . . . . . . . . . . . . . . . Crush 6 | . . . . . . . . . . 2 . . . 1 . . . . . . . 2 . 1 Escape Stasis . | . . . . . . . . . . . . . . . . . . . . . . . . . Rewire 71 | . . . . . . . . . . . 50 . . . . . . . . 21 . . . . Trap . | . . . . . . . . . . . . . . . . . . . . . . . . . Miscellaneous . | . . . . . . . . . . . . . . . . . . . . . . . . . Route ------- -11/Scrapyard -10/Materials (discovered 6 exits: *Mat x3 / [*Min x2] / Sub) -9/Materials (discovered 5 exits: *Mat x3 / *Min x2) -9/Mines (discovered 2 exits: *Mat x2) -8/Materials -7/Factory (discovered 2 exits: *Fac / *Low) -7/Lower Caves -7/Lower Caves (discovered 2 exits: *Fac / *Dat) -7/Data Miner -6/Proximity Caves -6/Factory (discovered 2 exits: *Fac / *Ext) -6/Extension (discovered 2 exits: *Fac / *Cet) -6/Cetus (discovered 2 exits: *Fac / *Arc) -6/Archives (discovered 2 exits: *Fac / *Hub) -6/Hub_04(d) -5/Factory -5/Garrison (discovered 2 exits: *Fac x2) -5/Factory (discovered 2 exits: *Upp x2) -5/Upper Caves -5/Upper Caves (discovered 2 exits: *Fac / *War) -5/Warlord -4/Proximity Caves -4/Factory (discovered 2 exits: *Upp x2) -4/Upper Caves -4/Upper Caves (discovered 1 exit: *Res) History --------- Turn | Location | Event 10 | -11/Scrapyard | Discovered new exit (range 2) 72 | -11/Scrapyard | Entered Materials 198 | -10/Materials | Discovered new exit (range 16) 301 | -10/Materials | Build established: Mutant 416 | -10/Materials | Discovered new exit (range 15) 707 | -10/Materials | Lost 3 parts (2n1u) 1001 | -10/Materials | Core integrity fell below 50% 1067 | -10/Materials | Core integrity fell below 20% 1109 | -10/Materials | Discovered new exit (range 16) 1111 | -10/Materials | Lost 5 parts (1p2n2w) 1196 | -10/Materials | Discovered new exit (range 3) 1713 | -10/Materials | Discovered new exit (range 16) 1754 | -10/Materials | Identified exit to Subcaves 1754 | -10/Materials | Learned location of 1 exit from Materials 1825 | -10/Materials | Learned location of 2 exits from Subcaves 1885 | -10/Materials | Learned 4 Recycling zone layouts 1934 | -10/Materials | Learned location of 3 exits from Materials 1972 | -10/Materials | Learned 4 Recycling zone layouts 1999 | -10/Materials | Learned location of Storage (-8) 2037 | -10/Materials | Learned Storage terminal intel 2069 | -10/Materials | Learned Storage emergency access door positions 2105 | -10/Materials | Repaired Seismic Detector 2112 | -10/Materials | Learned Storage emergency access door positions 2132 | -10/Materials | Repaired Lgt. Treads 2765 | -10/Materials | Entered another Materials area 2765 | -9/Materials | Evolved 2 slots: Utility x1, Weapon x1 2766 | -9/Materials | Identified exit to Materials 2766 | -9/Materials | Identified exit to Mines 3078 | -9/Materials | Build established: Tank 4568 | -9/Materials | Loaded intel: 2 repair station locations 4591 | -9/Materials | Learned 4 Recycling zone layouts 4606 | -9/Materials | Learned location of Recycling (-8) 4610 | -9/Materials | Learned location of Zion (-6) 4611 | -9/Materials | Learned Materials emergency access door positions 4662 | -9/Materials | Loaded intel: 18 trap records 4698 | -9/Materials | Learned Storage trap positions 4717 | -9/Materials | Repaired Med. Armor Plating 5165 | -9/Materials | First assault squad dispatched 5299 | -9/Materials | Entered Mines 5369 | -9/Mines | Build established: Scavenger-Tank 5458 | -9/Mines | Discovered exit to Materials (range 6) 5812 | -9/Mines | Discovered exit to Materials (range 9) 5961 | -9/Mines | Learned Materials emergency access door positions 5989 | -9/Mines | Met a Derelict shopkeep closing up shop 6928 | -9/Mines | Entered Materials 6928 | -8/Materials | Accompanied by 1 ally 6928 | -8/Materials | Evolved 2 slots: Utility x1, Weapon x1 6933 | -8/Materials | Led the pair of lost Derelicts to an unsafe place 7367 | -8/Materials | Garrison activated, responded to threat 7777 | -8/Materials | Garrison activated, responded to threat 8431 | -8/Materials | Repaired Hvy. Assault Rifle 8710 | -8/Materials | Repaired Hvy. Assault Rifle 8750 | -8/Materials | Repaired Hardlight Generator 8783 | -8/Materials | Repaired Hvy. Assault Rifle 9823 | -8/Materials | Garrison activated, responded to threat 9976 | -8/Materials | Discovered new exit (range 11) 10047 | -8/Materials | Entered Factory 10047 | -7/Factory | Evolved 2 slots: Propulsion x1, Utility x1 10048 | -7/Factory | Identified exit to Lower Caves 10341 | -7/Factory | Build established: Tank 11647 | -7/Factory | Discovered new exit (range 6) 11659 | -7/Factory | Identified exit to Factory 11789 | -7/Factory | Build established: Skirmisher 11993 | -7/Factory | Entered Lower Caves 12562 | -7/Lower Caves | Attracted the attention of an 0b10 base 13439 | -7/Lower Caves | Learned Factory non-interactive machine intel 13982 | -7/Lower Caves | Identified exit to Lower Caves 14467 | -7/Lower Caves | Learned location of Armory (-3) 14467 | -7/Lower Caves | Learned Extension trap positions 14467 | -7/Lower Caves | Learned Research emergency access door positions 14467 | -7/Lower Caves | Learned Armory emergency access door positions 14749 | -7/Lower Caves | Entered another Lower Caves area 15306 | -7/Lower Caves | Discovered exit to Factory (range 16) 16121 | -7/Lower Caves | Acquired the password to a Derelict Tinkerer's latest research 16460 | -7/Lower Caves | Caught by Unaware searching for contraband prototypes 16464 | -7/Lower Caves | Crushed by falling debris 16464 | -7/Lower Caves | System corruption reached 10% 16473 | -7/Lower Caves | Crushed by falling debris 16639 | -7/Lower Caves | Learned Factory interactive machine intel 16724 | -7/Lower Caves | Caught by Unaware searching for contraband prototypes 16763 | -7/Lower Caves | Build established: Tank 17332 | -7/Lower Caves | Found Prototype Special Weapon 17516 | -7/Lower Caves | Discovered new exit (range 12) 17555 | -7/Lower Caves | Identified exit to Data Miner 17574 | -7/Lower Caves | Entered Data Miner 17574 | -7/Data Miner | Discovered new exit (range 6) 17584 | -7/Data Miner | Identified exit to Proximity Caves 17624 | -7/Data Miner | Met Data Miner 17669 | -7/Data Miner | Learned location of Section 7 (-2) 17669 | -7/Data Miner | Acquired the access code to Warlord's prototype stash 17705 | -7/Data Miner | Received God Mode back door access code from Data Miner 17773 | -7/Data Miner | Entered Proximity Caves 17776 | -6/Proximity Caves | Spotter reported a threat 17776 | -6/Proximity Caves | Spotter reported a threat 17829 | -6/Proximity Caves | Spotter reported a threat 18029 | -6/Proximity Caves | Learned Factory stockpile data 18058 | -6/Proximity Caves | Learned Factory trap positions 18235 | -6/Proximity Caves | Attracted the attention of an 0b10 checkpoint 18499 | -6/Proximity Caves | Discovered exit to Factory (range 6) 18518 | -6/Proximity Caves | Entered Factory 18518 | -6/Factory | Evolved 2 slots: Utility x1, Weapon x1 18519 | -6/Factory | Loaded intel: 108 trap records 18521 | -6/Factory | Loaded intel: 232 non-interactive machine locations 18522 | -6/Factory | Loaded intel: 56 interactive machine locations 18645 | -6/Factory | Build established: Scavenger-Tank 19096 | -6/Factory | Identified Molecular Deconstructor 20309 | -6/Factory | Repaired Hrd. Heavy Armor Plating? 20408 | -6/Factory | Repaired Minigun? 20450 | -6/Factory | Incoming investigation squad redirected 20635 | -6/Factory | Discovered new exit (range 14) 20690 | -6/Factory | Identified exit to Factory 21944 | -6/Factory | Discovered new exit (range 16) 22131 | -6/Factory | Identified exit to Extension 22134 | -6/Factory | Entered Extension 22135 | -6/Extension | Loaded intel: 20 trap records 22167 | -6/Extension | Build established: Tank 22575 | -6/Extension | Destroyed 7 combat bots 22917 | -6/Extension | Build established: Scavenger-Tank 23278 | -6/Extension | Rescued a captive Derelict 23279 | -6/Extension | Rescued a captive Derelict 23321 | -6/Extension | Rescued a captive Derelict 23322 | -6/Extension | Rescued a captive Derelict 23885 | -6/Extension | Lost 3 allies 23914 | -6/Extension | Build established: Commander-Tank 24056 | -6/Extension | Rescued a captive Derelict 24057 | -6/Extension | Rescued a captive Derelict 24196 | -6/Extension | Rescued A7 24208 | -6/Extension | Rescued a captive Derelict 24208 | -6/Extension | Rescued a captive Derelict 24355 | -6/Extension | Rescued a captive Derelict 24356 | -6/Extension | Rescued a captive Derelict 24614 | -6/Extension | Discovered exit to Factory (range 10) 24620 | -6/Extension | Discovered new exit (range 6) 24650 | -6/Extension | Identified exit to Cetus 24674 | -6/Extension | Entered Cetus 24674 | -6/Cetus | Accompanied by 13 allies (A7) 24679 | -6/Cetus | Acquired a Cetus Manufacturing Module code from A7 24706 | -6/Cetus | Spotted Cetus Guard 24707 | -6/Cetus | Spotted Cetus Guard 24711 | -6/Cetus | Spotted Cetus Guard 24712 | -6/Cetus | Destroyed Cetus Guard 24717 | -6/Cetus | Allies destroyed Cetus Guard 24725 | -6/Cetus | Allies destroyed Cetus Guard 24725 | -6/Cetus | Spotted Cetus Guard 24731 | -6/Cetus | Destroyed Cetus Guard 24824 | -6/Cetus | Started Cetus Manufacturing Module 24849 | -6/Cetus | Manufactured an Enhanced Grunt 24874 | -6/Cetus | Manufactured an Enhanced Grunt 24899 | -6/Cetus | Manufactured an Enhanced Grunt 24924 | -6/Cetus | Manufactured an Enhanced Grunt 24949 | -6/Cetus | Manufactured an Enhanced Grunt 25156 | -6/Cetus | Escorted A7 to Cetus Mainframe 25333 | -6/Cetus | Discovered new exit (range 16) 25424 | -6/Cetus | Security sweep announced 25627 | -6/Cetus | Spotted Cetus Guard 25627 | -6/Cetus | Spotted Cetus Guard 25632 | -6/Cetus | Allies destroyed Cetus Guard 25633 | -6/Cetus | Spotted Cetus Guard 25633 | -6/Cetus | Spotted Cetus Guard 25637 | -6/Cetus | Allies destroyed Cetus Guard 25639 | -6/Cetus | Destroyed Cetus Guard 25646 | -6/Cetus | Allies destroyed Cetus Guard 25659 | -6/Cetus | Discovered exit to Factory (range 15) 25674 | -6/Cetus | Met Revision 17 25786 | -6/Cetus | Identified exit to Archives 25824 | -6/Cetus | Entered Archives 25824 | -6/Archives | Accompanied by 15 allies (A7) 25829 | -6/Archives | Received a hacking code to weaken MAIN.C 25924 | -6/Archives | Lost 4 allies 25931 | -6/Archives | Discovered new exit (range 13) 26071 | -6/Archives | Discovered exit to Factory (range 16) 26156 | -6/Archives | Identified exit to Hub_04(d) 26165 | -6/Archives | Entered Hub_04(d) 26165 | -6/Hub_04(d) | Accompanied by 10 allies 26439 | -6/Hub_04(d) | Found Exp. Thermal Shield 26622 | -6/Hub_04(d) | Discovered exit to Factory (range 6) 26856 | -6/Hub_04(d) | Lost 4 allies 27035 | -6/Hub_04(d) | Build established: Scavenger-Tank 27215 | -6/Hub_04(d) | First assault squad dispatched 27245 | -6/Hub_04(d) | Disrupted transfer network 27314 | -6/Hub_04(d) | Lost 3 parts (1u2w) 27348 | -6/Hub_04(d) | Destroyed 9 combat bots 27515 | -6/Hub_04(d) | Network Hub disabled 27586 | -6/Hub_04(d) | Spotted Lightning 27587 | -6/Hub_04(d) | Spotted Lightning 27590 | -6/Hub_04(d) | Spotted Lightning 27595 | -6/Hub_04(d) | System corruption reached 10% 27620 | -6/Hub_04(d) | Entered Factory 27620 | -5/Factory | Evolved 2 slots: Propulsion x1, Utility x1 27638 | -5/Factory | Lost 4 parts (1n1u2w) 28634 | -5/Factory | Garrison activated, responded to threat 28751 | -5/Factory | Identified exit to Garrison 28753 | -5/Factory | Entered Garrison 28794 | -5/Garrison | Heavy support dispatched to Factory 28834 | -5/Garrison | Destroyed 7 combat bots 28933 | -5/Garrison | Triggered checkpoint 28959 | -5/Garrison | Garrison Relay disabled 29083 | -5/Garrison | Heavy support dispatched to Factory 29117 | -5/Garrison | Triggered checkpoint 29129 | -5/Garrison | Triggered checkpoint 29447 | -5/Garrison | Triggered checkpoint 29483 | -5/Garrison | Garrison Relay disabled 29569 | -5/Garrison | Discovered new exit (range 21) 29667 | -5/Garrison | Attempted to access garrison exit controls, blocked by remote lockdown 29860 | -5/Garrison | Discovered new exit (range 10) 29906 | -5/Garrison | Entered Factory 30757 | -5/Factory | Incoming investigation squad redirected 30903 | -5/Factory | Discovered new exit (range 14) 31503 | -5/Factory | Identified exit to Upper Caves 31840 | -5/Factory | System corruption reached 10% 32098 | -5/Factory | Fabricated Lyr. Heavy Armor Plating (x1) 33206 | -5/Factory | First assault squad dispatched 33215 | -5/Factory | Entered Upper Caves 33223 | -5/Upper Caves | Met a Warlord Commander 33224 | -5/Upper Caves | Learned location of Warlord (-5) 33225 | -5/Upper Caves | Warlord Commander delivered Encrypted Comm Array 33229 | -5/Upper Caves | Found Encrypted Comm Array 33642 | -5/Upper Caves | Identified exit to Upper Caves 33718 | -5/Upper Caves | Encountered a Warlord checkpoint 34379 | -5/Upper Caves | Learned 4 Factory zone layouts 34667 | -5/Upper Caves | Learned Factory trap positions 34719 | -5/Upper Caves | Entered another Upper Caves area 34721 | -5/Upper Caves | Attracted the attention of an 0b10 checkpoint 34826 | -5/Upper Caves | Learned Factory security intel 34846 | -5/Upper Caves | Discovered new exit (range 12) 35125 | -5/Upper Caves | Learned Factory stockpile data 36294 | -5/Upper Caves | Discovered new exit (range 8) 36603 | -5/Upper Caves | Entered Warlord 36692 | -5/Warlord | System corruption cleaned by Quarantine Array 36737 | -5/Warlord | System corruption cleaned by Quarantine Array 37205 | -5/Warlord | Build established: Commander-Tank 37458 | -5/Warlord | Opened Warlord's prototype stash 37463 | -5/Warlord | Found Prototype Reactor 37479 | -5/Warlord | Found Prototype Processor 37479 | -5/Warlord | Identified Exp. Core Analyzer 37903 | -5/Warlord | Warlord's base attacked by MAIN.C 37908 | -5/Warlord | Met Warlord 38148 | -5/Warlord | Spotted B-75 Beast 38163 | -5/Warlord | Spotted B-86 Titan 38253 | -5/Warlord | Warlord forces counterattacked 38289 | -5/Warlord | Spotted Striker 38296 | -5/Warlord | Spotted Executioner 38301 | -5/Warlord | Destroyed Striker 38320 | -5/Warlord | Spotted Executioner 38320 | -5/Warlord | Spotted B-86 Titan 38320 | -5/Warlord | Spotted B-75 Beast 38323 | -5/Warlord | Spotted B-75 Beast 38326 | -5/Warlord | Spotted Striker 38336 | -5/Warlord | Destroyed Executioner 38338 | -5/Warlord | Spotted B-86 Titan 38396 | -5/Warlord | Lost 18 allies 38420 | -5/Warlord | Spotted Executioner 38439 | -5/Warlord | Spotted Executioner 38463 | -5/Warlord | Lost 11 allies 38472 | -5/Warlord | Spotted Executioner 38475 | -5/Warlord | Destroyed Executioner 38491 | -5/Warlord | Destroyed Executioner 38532 | -5/Warlord | Spotted Executioner 38552 | -5/Warlord | Destroyed Executioner 38578 | -5/Warlord | Warlord base infiltrated, sounded retreat 38578 | -5/Warlord | Spotted B-86 Titan 38819 | -5/Warlord | Spotted Executioner 38858 | -5/Warlord | Lost 7 allies 38890 | -5/Warlord | Discovered new exit (range 9) 38910 | -5/Warlord | Entered Proximity Caves 38910 | -4/Proximity Caves | Accompanied by 1 ally 39115 | -4/Proximity Caves | Build established: Scavenger-Tank 39888 | -4/Proximity Caves | Attracted the attention of an 0b10 outpost 40067 | -4/Proximity Caves | Learned location of 1 exit from Research 40205 | -4/Proximity Caves | Discovered new exit (range 14) 40449 | -4/Proximity Caves | Entered Factory 40449 | -4/Factory | Evolved 2 slots: Power x1, Utility x1 40450 | -4/Factory | Identified exit to Upper Caves 40451 | -4/Factory | Loaded intel: 90 trap records 40465 | -4/Factory | Identified Vortex Chain Reactor 40725 | -4/Factory | Garrison activated, responded to threat 41084 | -4/Factory | Found Unknown Device 41084 | -4/Factory | Identified Quantum Capacitor 41151 | -4/Factory | Spotted Striker 41152 | -4/Factory | Cargo convoy interrupted 41156 | -4/Factory | Destroyed Striker 41176 | -4/Factory | Incoming assault squad redirected 41217 | -4/Factory | Destroyed 8 combat bots 41433 | -4/Factory | Garrison activated, responded to threat 41686 | -4/Factory | Spotted B-86 Titan 42246 | -4/Factory | Destroyed 13 combat bots 42254 | -4/Factory | Lost 9 parts (3u6w) 42444 | -4/Factory | Build established: Scavenger-Gunner 42496 | -4/Factory | Incoming investigation squad redirected 42603 | -4/Factory | Garrison activated, responded to threat 42699 | -4/Factory | First assault squad dispatched 42714 | -4/Factory | Incoming assault squad redirected 42937 | -4/Factory | System corruption reached 10% 42942 | -4/Factory | Lost 10 parts (1p4n5w) 42972 | -4/Factory | Incoming assault squad redirected 42973 | -4/Factory | Incoming assault squad redirected 43029 | -4/Factory | Lost 3 parts (2u1w) 43456 | -4/Factory | System corruption reached 30% 43634 | -4/Factory | Build established: Scavenger-Tank 43636 | -4/Factory | Found Quantum Capacitor 43718 | -4/Factory | Incoming assault squad redirected 43766 | -4/Factory | Lost 6 parts (2p1u3w) 43797 | -4/Factory | Entered Upper Caves 43815 | -4/Upper Caves | Core integrity fell below 50% 43857 | -4/Upper Caves | Lost 3 parts (2n1w) 44019 | -4/Upper Caves | Build established: Mutant 44086 | -4/Upper Caves | Attracted the attention of an 0b10 checkpoint 44494 | -4/Upper Caves | Build established: Scavenger-Mutant 44589 | -4/Upper Caves | Encountered a Warlord checkpoint 44818 | -4/Upper Caves | Lost 7 parts (2p3n2w) 44879 | -4/Upper Caves | Learned Research emergency access door positions 44999 | -4/Upper Caves | Found Unknown Protection 44999 | -4/Upper Caves | Identified Imp. Powered Armor 45423 | -4/Upper Caves | Discovered new exit (range 17) 45478 | -4/Upper Caves | Lost 3 parts (1n1u1w) 45487 | -4/Upper Caves | Build established: Scavenger-Gunner 45650 | -4/Upper Caves | Identified exit to Upper Caves 46183 | -4/Upper Caves | Entered another Upper Caves area 46245 | -4/Upper Caves | Learned location of Quarantine (-2) 46260 | -4/Upper Caves | Attracted the attention of an 0b10 checkpoint 46269 | -4/Upper Caves | Core integrity fell below 20% 46490 | -4/Upper Caves | Discovered new exit (range 11) 46551 | -4/Upper Caves | Identified exit to Research 46592 | -4/Upper Caves | Build established: Scavenger-Tank 46866 | -4/Upper Caves | Destroyed by Y-72 Warden with Quantum Rifle Last Messages --------------- 46860_ Penetrated by Slug. 46860_ Slug penetrates Wall. 46860_ Jacked Y-72 Warden... >>parse_system Reading system data... New IDs: Particle Reactor Hvy. Armor Plating 46862_ Med. Treads destroyed. 46863_ Penetrated by Slug. 46863_ Slug penetrates Wall. 46863_ Jacked G-67 Veteran... >>parse_system Reading system data... New IDs: Lgt. Antimatter Reactor Flexi-carbon Leg 46864_ Jacked Y-72 Warden... >>parse_system Reading system data... Map ----- +----------------------------------------------------+ | ????????????????????????????????????????######???? | | ???????????????????????????????????????## ##??? | | ???????????????????????????????????????# ##?? | | ???????????????????????????????????????# ### | | ???????????????????????????????######???# | | ???????????????????????????????# ##???# | | ???????????????????????????????# ##### | | ???????????????????????????????# ### | | ??????????????????????????????## ## | | ??????????????????????????????# ## ## | | ??????????????????????????????## ## ## | | ??????????????????????????????## #### | | ???????????????????############ ##??## | | ?????????????????# ######??### ! | | ?????????????????# ####### ! ### ##???## # | | ??????????????????????#"""""### %# ##???# # | | ??????????????????????"" ""?## ##?# # | | ???????????#??????????? ???# ## | | ?????????### ?????????? ???# ## ## | | ?????????? ?????????? ????# #### ### | | ??????????? ???????? ????# #???# #? | | ????????????# ???????# ##???# #???# ## | | ?????????#### ??????# #??## #???# ##### | | ?????????# ?#"??#g##?X# #??# ##???? | | ??????????# ?# #%#""## #### ###????? | | ??????????# ?#;;@Y### ##??????? | | ??????????# ### ### # ##???????? | | ??????????# # ## ## ?????????? | | ????? ###### ##??????????? | | ????? ## ### ##???# ##???####### | | ??????????????????## ##### # ##??# | | ???????????????????## ### # #### | | ????????????????????## ### #?## # #### | | ?????????????????????### ##??####??# #?#" | | ???????????????????????##;#???????# ###### | | ????????????????????????# #???????## # ##???# | | ????????????????????????###????????## ##????## | | ????????????????????????????????????#####??????#" | | ???????????????????????????????????????????????### | | ?????????????????????????????????????????????????? | | ?????????????????????????????????????????????????? | | ?????????????????????????????????????????????????? | | ?????????????????????????????????????????????????? | | ?????????????????????????????????????????????????? | | ?????????????????????????????????????????????????? | | ?????????????????????????????????????????????????? | | ?????????????????????????????????????????????????? | | ?????????????????????????????????????????????????? | | ?????????????????????????????????????????????????? | | ?????????????????????????????????????????????????? | +----------------------------------------------------+ Best States ------------- Heat Dissipation 93 Coolant Potential 100 Energy Generation 55 Energy Capacity 700 Matter Stores 300 Matter Capacity 300 Sight Range 22 Robot Scan Range 16 Terrain Scan Range 16 Terrain Scan Density 10 Armor Coverage 1200 Resistance: KI 30 Resistance: TH 30 Resistance: EM 25 Core Shielding 30 Utility Shielding 66 Point Defense Rating 160 Weapon Cycling 20 Evasion (%) 50 Core Analysis 8 Recoil Reduction 4 Salvage Targeting 2 Offensive Hacking 12 Defensive Hacking 10 Item Schematics ----------------- Huge Storage Unit | -10/Materials | Hacked Combat Drone Bay | -7/Data Miner | Free Lgt. Regenerative Plating | -7/Data Miner | Free Cld. Cesium-ion Thruster | -7/Data Miner | Free Gravity Neutralizer | -7/Data Miner | Free Imp. Heavy Machine Gun | -7/Data Miner | Free Hvy. Treads | -7/Data Miner | Free Lyr. Heavy Armor Plating | -7/Data Miner | Free Mass Driver | -7/Data Miner | Free Cmb. Airjet | -7/Data Miner | Free Adv. Force Field | -5/Factory | Hacked Adv. Hardlight Generator | -4/Factory | Hacked Robot Schematics ------------------ E-15 Imp | -7/Data Miner | Free B-48 Gladiator | -7/Data Miner | Free S-27 Virus | -7/Data Miner | Free M-22 Extractor | -7/Data Miner | Free G-50 Soldier | -7/Data Miner | Free B-60 Warrior | -7/Data Miner | Free Y-54 Guardian | -7/Data Miner | Free M-36 Artificer | -4/Factory | Hacked Fabricated ------------ Lyr. Heavy Armor Plating | x1 | -5/Factory Repaired ---------- Seismic Detector | 25% | -10/Materials Lgt. Treads | 62% | -10/Materials Med. Armor Plating | 11% | -9/Materials Hvy. Assault Rifle | 13% | -8/Materials Hvy. Assault Rifle | 35% | -8/Materials Hardlight Generator | 33% | -8/Materials Hvy. Assault Rifle | 71% | -8/Materials Hrd. Heavy Armor Plating | 19% | -6/Factory Minigun | 33% | -6/Factory Alien Tech Used ----------------- None Achievements -------------- None Challenges ------------ None Game ------ Seed AlloyConstructChainsaw Manual? 0 Play Time 04:34:32 Cumulative 284.7 hours Start 2025.06.11 @ 05:10:48 End 2025.06.12 @ 10:13:07 Sessions 5 Manual Loads 0 Difficulty Rogue Special Mode None Game No. 178 Rogue 178 Adventurer 0 Explorer 0 Win Type - Total 2 Types 1/0/0/1/0/0/0/0/0/0 Lore% 81 Gallery% 64 Achievement% 62 Wizard Run 0 Options --------- Layout 0 ASCII 0 Keyboard 0 Movement Mouse Keybinds 0 Fullscreen 1 Font 18/SmallcapsGlow Map View 76x50 Zoom Use 0% Tactical HUD 1 Map Filters NONE Filters NONE Steam 1 RUN: 53154187-95fd-46c0-b9cb-d7856bafc500